bitfinex/quotes_ETHUSD_20250611
["timestamp","ask_amount","ask_price","bid_price","bid_amount"]
[1749658205766,8.8192736,2853.7,2851.5,5.4605]
[1749658206050,0.1752,2852.5,2852.0,0.1752]
[1749658206256,0.1752,2852.5,2852.1,3.866]
[1749658206398,0.8179,2853.5,2852.3,0.55]
[1749658206597,0.1752,2852.9,2852.4,0.1752]
[1749658206856,0.1752,2852.9,2852.5,3.866]
[1749658207056,0.1752,2852.9,2852.5,4.32512]
[1749658207818,0.3542114,2853.7,2852.1,10.7661]
[1749658207819,0.757,2853.1,2852.1,10.7661]
[1749658208015,0.757,2853.1,2852.4,0.1752]
[1749658208016,0.1752,2852.9,2852.4,0.1752]
[1749658208760,0.757,2853.1,2852.5,13.866]
[1749658208761,0.1752,2852.6,2852.5,13.866]
[1749658210067,0.757,2853.1,2852.5,13.866]
[1749658210233,0.1752,2852.9,2852.5,13.866]
[1749658210865,0.7917,2853.5,2852.7,0.8056]
[1749658211024,0.1752,2853.3,2852.8,14.5912]
[1749658211224,0.1752,2853.3,2852.8,14.0412]
[1749658211435,0.1752,2853.3,2853.0,10.0]
[1749658211635,0.1752,2853.3,2853.1,0.8056]
[1749658211833,0.04,2853.9,2853.4,0.55]
[1749658212140,0.04,2853.9,2853.5,3.866]
[1749658212438,0.04,2853.9,2853.1,0.8056]
[1749658212642,0.7717,2853.8,2853.3,10.0]
[1749658213044,0.7717,2853.8,2853.2,3.866]
[1749658213867,8.54768061,2853.8,2852.5,0.751]
[1749658214173,0.7717,2853.6,2852.5,0.751]
[1749658214352,0.7717,2853.6,2852.7,10.0]
[1749658216897,0.7717,2853.6,2852.7,3.865]
[1749658217049,0.7717,2853.6,2852.8,4.67]
[1749658217250,10.28640702,2853.5,2852.8,4.67]
[1749658217456,0.7788,2853.4,2852.6,4.67]
[1749658217676,0.7788,2853.4,2851.4,4.67]
[1749658217677,0.7788,2852.6,2851.4,4.67]
[1749658217877,0.7788,2852.3,2851.4,3.865]
[1749658219492,0.7788,2852.3,2851.5,10.0]
[1749658220083,0.7788,2852.3,2851.3,0.55]
[1749658220276,0.7788,2852.3,2851.5,10.0]
[1749658221481,0.7788,2852.3,2851.5,3.866]
[1749658221681,0.1752,2851.6,2851.4,3.866]
[1749658221857,0.1752,2851.6,2851.1,0.2152]
[1749658222259,0.1752,2851.6,2851.3,10.0]
[1749658224069,0.1752,2851.6,2851.1,0.2152]
[1749658224406,0.8093,2851.7,2851.1,0.2152]
[1749658224407,0.1752,2851.4,2851.2,13.866]
[1749658224897,0.1752,2851.6,2851.3,0.8107]
[1749658225204,0.1752,2851.6,2851.4,4.67]
[1749658226566,0.8168,2852.0,2851.5,10.0]
[1749658226796,0.1752,2851.8,2851.6,4.67]
[1749658229619,7.78403165,2852.3,2851.1,0.04]
[1749658229620,0.1752,2851.6,2851.1,0.04]
[1749658229916,0.9996,2851.2,2851.1,0.04]
[1749658234234,4.31895887,2851.0,2850.1,0.04]
[1749658234439,0.8114,2850.8,2850.1,0.04]
[1749658235082,14.967,2850.9,2848.8,0.18573]
[1749658235083,10.7566,2850.1,2848.8,0.18573]
[1749658235329,0.7566,2850.0,2848.8,0.005]
[1749658235798,0.7566,2849.9,2848.8,0.005]
[1749658236911,0.7566,2849.9,2848.9,10.8248]
[1749658237325,0.7566,2849.9,2848.8,0.005]
[1749658237518,0.7566,2849.9,2848.9,3.866]
[1749658237848,10.7566,2849.9,2848.8,0.005]
[1749658238054,1.85406317,2849.8,2848.8,0.005]
[1749658238615,0.7814,2849.7,2848.8,0.005]
[1749658239169,0.55,2849.5,2848.8,0.005]
[1749658239327,0.7814,2849.4,2848.8,0.005]
[1749658239535,0.7814,2849.4,2848.2,0.14389626]
[1749658239536,0.55,2848.8,2848.2,0.14389626]
[1749658239737,10.0,2849.1,2848.2,0.14389626]
[1749658239738,18.54043165,2848.3,2848.2,0.14389626]
[1749658239965,20.39447481,2848.3,2848.2,0.14389626]
[1749658240379,2.61044316,2848.3,2848.2,0.14389626]
[1749658240666,8.54043165,2848.3,2848.2,0.14389626]
[1749658240842,0.55,2848.2,2847.2,0.17879101]
[1749658241046,7.78403165,2847.4,2846.3,0.7943]
[1749658241224,0.8136,2847.3,2845.4,1.1588761]
[1749658241548,0.8136,2847.3,2847.0,0.17374263]
[1749658241751,0.8136,2847.3,2846.2,0.8056]
[1749658241752,1.16659561,2847.3,2846.2,0.8056]
[1749658241937,1.16659561,2847.3,2845.4,0.3532761]
[1749658241938,0.8136,2847.2,2845.7,0.8056]
[1749658242282,8.59033165,2846.2,2844.7,0.8056]
[1749658242762,8.59033165,2846.2,2843.7,7.78403165]
[1749658242763,10.8063,2846.1,2843.7,7.78403165]
[1749658243066,10.8063,2846.1,2843.3,5.034]
[1749658243067,0.8063,2845.9,2843.9,0.7902]
[1749658243283,0.8063,2845.9,2844.7,0.7902]
[1749658243930,0.1752,2845.3,2844.8,0.1752]
[1749658244243,0.8048,2846.3,2844.7,0.7902]
[1749658244444,0.1752,2845.3,2844.8,0.1752]
[1749658244832,0.1752,2845.3,2844.9,10.0]
[1749658245150,0.1752,2845.9,2845.3,0.7942]
[1749658245354,0.8048,2846.7,2845.3,0.7942]
[1749658245567,0.89506273,2847.2,2845.0,1.147]
[1749658245568,0.1752,2846.0,2845.6,0.55]
[1749658245739,0.1752,2846.3,2845.8,0.55]
[1749658245944,0.1752,2846.3,2846.0,0.55]
[1749658246170,0.04,2847.9,2846.2,0.55]
[1749658246171,0.8048,2847.8,2846.2,0.55]
[1749658246332,0.8048,2847.8,2846.5,0.55]
[1749658246333,0.1752,2846.9,2846.5,0.55]
[1749658246530,0.1752,2846.9,2846.6,0.7942]
[1749658246785,0.8048,2847.8,2846.7,0.55]
[1749658246928,0.1752,2847.4,2846.9,0.1752]
[1749658247266,0.1752,2847.4,2847.0,0.55]
[1749658247451,0.04,2847.9,2846.9,0.1752]
[1749658247452,0.04,2847.9,2847.2,0.55]
[1749658247626,0.2152,2847.9,2847.2,0.55]
[1749658247830,0.2152,2847.9,2847.4,0.1752]
[1749658248073,0.2152,2847.9,2847.2,0.55]
[1749658248074,0.04,2847.9,2847.2,0.55]
[1749658248244,0.04,2847.9,2847.6,0.1752]
[1749658248455,0.04,2847.9,2847.7,0.7648]
[1749658249244,0.1752,2847.8,2847.4,10.0]
[1749658249551,0.1752,2847.2,2846.8,1.147]
[1749658249756,0.1752,2847.0,2846.8,1.147]
[1749658251173,0.1752,2847.0,2845.7,10.0]
[1749658251373,0.1752,2846.5,2846.1,1.147]
[1749658251758,0.1752,2846.5,2846.0,0.1752]
[1749658251759,0.8216,2846.9,2846.0,3.945]
[1749658252138,0.1752,2846.0,2845.8,0.7869]
[1749658252257,8.95522408,2846.9,2845.4,0.8028]
[1749658252446,0.1752,2845.6,2845.4,0.8028]
[1749658252858,0.8021,2846.2,2845.4,0.8028]
[1749658253502,0.8021,2846.8,2845.4,0.8028]
[1749658253654,0.1752,2845.8,2845.4,0.8028]
[1749658254267,0.8021,2846.8,2845.4,0.8028]
[1749658254446,0.1752,2845.5,2845.4,0.8028]
[1749658254645,0.1752,2845.5,2845.1,0.04]
[1749658254849,0.8021,2846.1,2845.1,0.04]
[1749658254850,0.1752,2845.3,2845.1,0.04]
[1749658255288,0.8021,2846.1,2845.1,0.04]
[1749658255603,1.15751722,2846.1,2845.1,0.04]
[1749658255949,0.1752,2845.2,2845.1,0.04]
[1749658256552,0.1752,2845.2,2845.1,0.849]
[1749658256801,0.1752,2845.2,2845.1,14.795]
[1749658257095,0.1752,2845.2,2845.1,15.942]
[1749658257383,0.8021,2846.5,2845.1,5.942]
[1749658257591,0.8021,2846.5,2845.2,10.0]
[1749658257592,0.29150847,2846.4,2845.2,10.0]
[1749658257889,0.29150847,2846.4,2845.4,0.7509]
[1749658258186,0.29150847,2846.4,2845.5,3.943]
[1749658258346,0.29150847,2846.4,2845.6,10.0]
[1749658259896,0.29150847,2846.4,2845.4,0.7509]
[1749658260098,0.29150847,2846.4,2845.6,10.0]
[1749658260652,0.29150847,2846.4,2845.6,3.941]
[1749658260982,0.34229502,2846.8,2845.6,3.941]
[1749658261154,0.34229502,2846.8,2845.1,0.7921]
[1749658261155,0.34471742,2846.8,2845.1,0.7921]
[1749658261494,0.785,2846.6,2845.1,0.04]
[1749658262793,0.815,2846.3,2845.1,0.04]
[1749658263168,9.01438532,2845.9,2845.1,0.04]
[1749658263370,0.8217,2845.7,2845.1,0.04]
[1749658263788,0.8217,2845.7,2843.1,9.05438532]
[1749658263789,0.55,2845.0,2843.1,0.04]
[1749658264011,0.8217,2844.4,2843.1,0.04]
[1749658264314,0.8217,2844.4,2843.5,0.7837]
[1749658264487,1.03840107,2845.0,2843.5,0.7837]
[1749658264488,0.32836502,2844.9,2843.6,10.14389626]
[1749658264811,0.34391422,2845.0,2844.5,3.51553335]
[1749658265012,0.34391422,2845.0,2844.7,10.8282]
[1749658265167,0.8055,2846.1,2844.0,0.8282]
[1749658265373,0.32829088,2846.0,2844.1,5.132]
[1749658265568,0.8055,2846.1,2844.1,5.132]
[1749658265569,0.32829088,2845.9,2844.4,0.7939]
[1749658265768,0.32829088,2845.8,2844.5,0.55]
[1749658266078,0.8055,2846.1,2844.5,0.55]
[1749658266263,0.8055,2846.1,2844.8,0.1752]
[1749658266264,0.1752,2845.4,2844.8,0.1752]
[1749658266471,0.1752,2845.4,2845.0,0.7531]
[1749658266670,0.04,2845.9,2844.6,5.132]
[1749658266671,0.04,2845.9,2844.6,4.7401]
[1749658266895,0.04,2845.9,2844.7,13.987]
[1749658267230,0.04,2845.9,2844.9,10.0]
[1749658267569,0.1752,2845.6,2845.1,0.1752]
[1749658268206,0.04,2845.9,2844.7,10.0]
[1749658268207,0.1752,2845.1,2844.7,10.0]
[1749658268784,0.04,2845.9,2844.8,0.55]
[1749658268989,0.1752,2845.6,2845.0,0.1752]
[1749658270220,0.04,2845.9,2845.4,0.1752]
[1749658270373,0.04,2845.9,2845.2,0.8169]
[1749658270374,0.1752,2845.6,2845.2,4.8019]
[1749658270709,0.04,2845.9,2845.1,3.985]
[1749658270911,0.1752,2845.4,2845.2,10.0]
[1749658271124,0.1752,2845.8,2845.3,0.1752]
[1749658271327,0.1752,2845.8,2845.4,0.50812054]
[1749658271529,0.1752,2845.8,2845.3,0.1752]
[1749658271738,0.04,2845.9,2845.1,0.1752]
[1749658271739,0.1752,2845.6,2845.1,0.1752]
[1749658271944,0.04,2845.9,2845.3,10.0]
[1749658272106,0.1752,2845.5,2845.3,10.0]
[1749658272495,0.1752,2845.5,2844.5,3.984]
[1749658272496,0.7667,2845.5,2844.5,3.984]
[1749658272799,0.04,2845.9,2844.9,0.7889]
[1749658273143,0.1752,2845.6,2845.1,0.1752]
[1749658273293,0.04,2845.9,2845.2,5.134]
[1749658273491,0.04,2845.9,2845.5,10.0]
[1749658273730,0.04,2845.9,2845.7,0.1752]
[1749658273904,0.04,2845.9,2845.8,10.0]
[1749658274234,0.1752,2845.8,2845.7,10.0]
[1749658275010,0.04,2845.9,2845.7,10.0]
[1749658275226,0.04,2845.9,2845.8,1.16302054]
[1749658275430,0.04,2845.9,2845.8,4.7538]
[1749658275735,0.04,2845.9,2845.8,15.3038]
[1749658276743,0.04,2845.9,2845.8,19.98475038]
[1749658277302,0.2152,2846.9,2846.3,3.51328558]
[1749658277530,0.04,2846.9,2846.8,0.1752]
[1749658277848,0.04,2846.9,2846.8,14.1532]
[1749658278010,0.7688,2847.8,2846.8,21.96763261]
[1749658278344,0.1752,2847.5,2847.0,0.1752]
[1749658280002,0.46670847,2847.7,2847.2,10.1752]
[1749658280216,0.46670847,2847.7,2847.2,0.1752]
[1749658280422,0.1752,2847.7,2847.2,0.1752]
[1749658280763,0.04,2847.9,2847.0,3.973]
[1749658280764,0.1752,2847.2,2847.0,3.973]
[1749658280939,0.1752,2847.0,2846.9,10.0]
[1749658281110,0.8266,2847.6,2846.9,10.0]
[1749658281313,0.1752,2847.1,2846.9,10.0]
[1749658281553,0.1752,2847.1,2846.2,1.169]
[1749658281719,0.7865,2847.0,2846.3,3.974]
[1749658281928,0.1752,2846.6,2846.3,3.974]
[1749658282330,0.7865,2847.0,2846.4,10.0]
[1749658282540,0.1752,2846.8,2846.4,10.0]
[1749658282743,0.7865,2847.0,2846.4,10.0]
[1749658283061,0.7865,2847.0,2846.1,0.8016]
[1749658283062,0.1752,2846.6,2846.1,0.9768]
[1749658283261,0.7865,2847.0,2845.8,0.8151]
[1749658283460,0.7865,2847.0,2845.4,0.17673162]
[1749658283461,0.9725,2846.3,2845.7,0.1752]
[1749658283608,0.1752,2845.8,2845.4,1.169]
[1749658284007,0.1752,2845.8,2845.6,10.0]
[1749658284447,0.1752,2846.0,2845.6,10.0]
[1749658284906,0.7973,2846.3,2845.8,0.1752]
[1749658284907,0.1752,2846.3,2845.8,0.1752]
[1749658286068,0.1752,2846.5,2846.0,0.1752]
[1749658286250,0.1752,2846.5,2846.2,10.0]
[1749658286615,0.815,2846.8,2846.2,3.965]
[1749658286810,0.1752,2846.3,2846.2,13.965]
[1749658287245,0.1752,2846.3,2845.2,0.35402544]
[1749658287246,0.9535,2846.3,2844.4,0.827]
[1749658287448,7.81443261,2846.0,2844.4,0.827]
[1749658287650,1.55974326,2845.9,2844.5,10.0]
[1749658287815,1.55974326,2845.9,2844.8,10.0]
[1749658287816,0.7783,2845.9,2844.8,10.0]
[1749658288020,0.7783,2845.9,2845.2,10.0]
[1749658289455,0.7783,2845.9,2845.2,3.973]
[1749658289971,0.7783,2845.9,2845.3,10.0]
[1749658291374,0.7783,2845.9,2845.1,0.04]
[1749658292036,0.32821927,2845.8,2845.1,0.04]
[1749658292240,0.8047,2845.7,2845.1,0.04]
[1749658292636,0.32819977,2846.4,2845.1,10.04]
[1749658292837,0.17501881,2847.6,2845.1,10.04]
[1749658292838,0.8047,2846.7,2845.9,7.81443261]
[1749658293039,0.8047,2847.1,2846.0,14.7338]
[1749658293267,0.8047,2847.1,2846.4,10.0]
[1749658293541,0.8047,2847.1,2846.6,10.0]
[1749658294178,0.8047,2847.8,2846.6,10.0]
[1749658294478,0.8047,2847.8,2846.7,1.17]
[1749658295681,0.8047,2847.8,2846.8,7.81443261]
[1749658295849,0.8047,2847.8,2846.9,10.0]
[1749658296068,0.8047,2847.8,2847.1,10.0]
[1749658297583,0.1752,2847.5,2847.1,10.0]
[1749658298284,0.1752,2847.7,2847.2,0.1752]
[1749658298647,0.1752,2847.7,2847.4,10.0]
[1749658298842,0.04,2847.9,2847.6,10.1752]
[1749658299153,0.04,2847.9,2847.7,1.169]
[1749658301265,0.04,2847.9,2847.6,0.1752]
[1749658301463,0.04,2847.9,2847.8,15.115]
[1749658301862,0.04,2847.9,2847.8,15.2892]
[1749658304280,0.1752,2848.4,2847.8,15.2892]
[1749658304281,0.04,2848.9,2847.9,10.0]
[1749658304508,0.04,2848.9,2848.4,10.8139]
[1749658304706,0.04,2848.9,2848.4,0.8139]
[1749658305005,0.04,2848.9,2848.0,0.8139]
[1749658305206,0.7994,2848.8,2848.0,0.8139]
[1749658305363,0.7994,2848.8,2848.0,0.9891]
[1749658305565,0.1752,2848.5,2848.1,5.082]
[1749658305771,0.7994,2848.8,2848.2,10.0]
[1749658305965,0.7994,2848.8,2848.2,10.1752]
[1749658305966,0.1752,2848.7,2848.2,10.1752]
[1749658306713,0.1752,2848.8,2848.3,0.1752]
[1749658306916,0.1752,2848.8,2848.5,10.0]
[1749658307211,0.04,2848.9,2848.4,3.937]
[1749658307212,0.1752,2848.5,2848.4,3.937]
[1749658307716,0.8153,2848.4,2847.2,0.7538]
[1749658307898,0.8153,2848.4,2847.3,5.08]
[1749658308091,0.8153,2848.4,2847.3,1.143]
[1749658308322,0.8153,2848.4,2847.4,3.937]
[1749658308636,0.8153,2848.4,2846.9,0.1752]
[1749658308807,0.8153,2848.4,2847.0,3.938]
[1749658309020,0.1752,2847.4,2847.0,3.938]
[1749658309708,0.1752,2847.2,2846.9,1.143]
[1749658309897,0.1752,2847.2,2847.1,3.94]
[1749658310067,0.1752,2847.2,2847.1,13.94]
[1749658310273,0.04,2848.9,2847.2,10.0]
[1749658310531,0.1752,2847.6,2847.2,10.0]
[1749658310820,0.1752,2847.6,2847.1,0.1752]
[1749658311118,0.7834,2848.0,2847.4,10.0]
[1749658311320,0.7834,2848.0,2847.3,3.937]
[1749658311470,0.7834,2848.0,2846.9,1.143]
[1749658311471,0.8107,2847.1,2846.9,1.143]
[1749658312138,0.1752,2846.9,2846.2,0.1752]
[1749658312277,0.8107,2847.1,2846.6,3.938]
[1749658312587,0.1752,2846.8,2846.6,3.938]
[1749658313927,0.1752,2846.8,2846.1,0.04]
[1749658314076,0.8107,2847.1,2846.5,3.932]
[1749658315393,0.8107,2847.1,2846.1,0.04]
[1749658315625,0.1752,2846.3,2846.1,0.04]
[1749658316353,0.1752,2846.3,2846.2,3.928]
[1749658316701,0.1752,2846.3,2846.1,0.04]
[1749658319246,0.1752,2846.5,2846.2,1.143]
[1749658319461,0.7682,2847.5,2846.4,10.0]
[1749658319664,0.1752,2846.6,2846.4,10.0]
[1749658319837,0.1752,2846.6,2846.1,0.2152]
[1749658320150,0.7682,2846.8,2846.5,3.923]
[1749658320557,0.1752,2846.5,2846.1,0.04]
[1749658320702,0.7682,2846.8,2846.1,0.04]
[1749658320904,7.81443261,2847.3,2846.1,0.04]
[1749658320905,0.9564,2846.2,2846.1,0.04]
[1749658322561,0.9564,2846.2,2846.1,14.71]
[1749658322562,0.1752,2846.2,2846.1,14.71]
[1749658322710,0.7867,2846.6,2846.2,10.0]
[1749658322912,0.1752,2846.4,2846.2,10.0]
[1749658323458,0.7867,2847.0,2846.2,10.0]
[1749658323623,0.7867,2847.0,2846.2,4.67]
[1749658323830,0.7867,2846.9,2846.2,4.67]
[1749658324035,3.51201009,2847.4,2846.1,0.04]
[1749658324036,0.1752,2846.2,2846.1,0.04]
[1749658324264,0.9619,2846.2,2846.1,0.04]
[1749658325812,6.09878306,2847.9,2846.1,3.964]
[1749658325813,0.8033,2846.6,2846.1,3.964]
[1749658326017,0.8033,2847.4,2846.1,3.964]
[1749658326264,0.8033,2847.4,2846.2,4.67]
[1749658326483,8.61773261,2847.3,2846.2,4.67]
[1749658326636,0.8033,2847.2,2846.2,4.67]
[1749658328317,0.8033,2847.2,2846.3,14.67]
[1749658328677,0.7518,2847.7,2846.5,17.81443261]
[1749658328816,0.7518,2847.7,2846.7,10.0]
[1749658329431,0.7518,2847.7,2846.3,10.0]
[1749658329645,0.7518,2847.7,2846.5,10.0]
[1749658330235,0.7518,2847.7,2846.6,3.919]
[1749658330420,0.7518,2847.7,2846.6,4.3109]
[1749658332016,0.7518,2847.7,2846.7,3.913]
[1749658332249,0.7518,2847.7,2846.2,4.67]
[1749658332449,0.7518,2847.7,2846.3,5.055]
[1749658332635,0.7518,2847.7,2846.4,3.912]
[1749658333051,0.7518,2847.7,2846.5,10.0]
[1749658333231,1.64316818,2847.7,2846.5,10.0]
[1749658333444,1.64316818,2847.7,2846.6,0.7671]
[1749658333445,0.7518,2847.7,2846.6,0.7671]
[1749658333622,0.7518,2847.7,2846.5,10.0]
[1749658334320,0.7518,2847.7,2846.6,3.908]
[1749658334519,0.7518,2847.7,2846.7,14.67]
[1749658334974,0.7518,2847.7,2846.8,0.7816]
[1749658335147,0.7517,2848.7,2846.8,0.7816]
[1749658335321,0.7517,2848.7,2847.0,10.0]
[1749658335527,0.7593,2848.6,2847.0,10.0]
[1749658335726,7.81443261,2848.7,2847.2,10.0]
[1749658335727,0.7593,2848.4,2847.2,10.0]
[1749658336061,0.1752,2847.2,2847.1,1.123]
[1749658336249,0.1752,2847.2,2847.1,19.7]
[1749658337535,0.34678166,2848.6,2847.2,10.0]
[1749658337735,0.34678166,2848.6,2847.2,6.4339938]
[1749658337736,0.1752,2847.3,2847.2,6.4339938]
[1749658337935,0.1752,2847.3,2846.9,4.67]
[1749658338174,7.81443261,2848.2,2846.9,4.67]
[1749658338331,1.04037178,2848.4,2846.9,4.67]
[1749658338529,0.35229058,2848.6,2847.0,0.8331]
[1749658338868,0.1752,2847.4,2847.0,0.8331]
[1749658339976,0.7863,2848.0,2847.2,10.0]
[1749658340170,0.8073,2848.4,2847.5,0.7884]
[1749658340327,0.1752,2848.0,2847.6,0.1752]
[1749658340523,0.1752,2848.0,2847.7,10.0]
[1749658340723,0.1752,2848.0,2847.8,3.903]
[1749658341172,0.1752,2848.0,2847.9,3.901]
[1749658341668,0.1752,2848.0,2847.9,13.901]
[1749658342234,0.04,2848.9,2847.9,9.5538]
[1749658342440,0.1752,2848.4,2848.0,9.692]
[1749658342663,0.1752,2848.4,2848.1,1.06748]
[1749658343164,0.04,2848.9,2848.1,1.06748]
[1749658343468,0.04,2848.9,2848.2,3.898]
[1749658343668,0.04,2848.9,2848.3,3.897]
[1749658344572,0.1752,2848.4,2848.3,3.897]
[1749658344866,0.1752,2848.7,2848.5,0.8325]
[1749658345167,0.04,2848.9,2848.5,0.8325]
[1749658345366,0.04,2848.9,2848.3,12.10113261]
[1749658345367,0.04,2848.9,2848.8,18.75933261]
[1749658345537,0.04,2848.9,2848.8,25.15262641]
[1749658345726,0.04,2848.9,2848.8,25.70262641]
[1749658345927,0.04,2848.9,2848.8,17.3381938]
[1749658346155,0.04,2848.9,2848.8,17.3391938]
[1749658346601,0.04,2848.9,2848.8,17.3381938]
[1749658347395,0.04,2848.9,2848.8,12.3191938]
[1749658347692,0.04,2848.9,2848.8,17.1599938]
[1749658348090,0.04,2848.9,2848.8,12.1439938]
[1749658348701,0.04,2848.9,2848.8,16.0359938]
[1749658350657,0.04,2848.9,2848.8,17.1509938]
[1749658351899,0.04,2848.9,2848.8,12.1439938]
[1749658352109,0.04,2848.9,2848.8,13.881]
[1749658352765,0.04,2848.9,2848.5,0.8255]
[1749658352956,0.1752,2848.7,2848.5,0.8255]
[1749658353152,0.04,2848.9,2848.6,3.881]
[1749658353352,0.04,2848.9,2848.7,3.881]
[1749658354400,0.04,2848.9,2848.2,0.7849]
[1749658354581,0.1752,2848.4,2848.3,13.881]
[1749658355906,0.1752,2848.6,2848.4,10.0]
[1749658356400,0.04,2848.9,2848.5,10.0]
[1749658356617,0.04,2848.9,2848.6,18.551]
[1749658356779,0.04,2848.9,2848.7,10.0]
[1749658356965,0.04,2848.9,2848.7,14.67]
[1749658357786,0.04,2848.9,2848.7,10.7873]
[1749658358171,0.04,2848.9,2848.8,13.881]
[1749658358577,0.04,2848.9,2848.8,10.0]
[1749658358783,0.04,2848.9,2848.8,13.881]
[1749658359663,0.04,2848.9,2848.8,14.6683]
[1749658360013,0.04,2848.9,2848.8,15.3935]
[1749658360499,0.04,2848.9,2848.8,13.881]
[1749658360886,0.2152,2848.9,2848.8,3.88]
[1749658362418,0.04,2848.9,2848.8,14.6673]
[1749658362993,0.04,2848.9,2848.8,10.7873]
[1749658363201,0.04,2848.9,2848.8,10.0]
[1749658363395,0.04,2848.9,2848.8,13.88]
[1749658363612,0.04,2848.9,2848.8,10.0]
[1749658363795,0.04,2848.9,2848.8,13.88]
[1749658364917,0.04,2848.9,2848.8,10.0]
[1749658365117,0.04,2848.9,2848.8,13.88]
[1749658365486,0.04,2848.9,2848.8,21.86963261]
[1749658365796,0.04,2848.9,2848.8,14.8644]
[1749658366525,0.04,2848.9,2848.8,15.9724]
[1749658367426,0.04,2848.9,2848.8,10.9844]
[1749658367626,0.04,2848.9,2848.8,13.88]
[1749658367831,0.04,2848.9,2848.8,15.268]
[1749658370522,0.04,2848.9,2848.8,10.0]
[1749658370706,0.04,2848.9,2848.8,13.88]
[1749658370902,0.04,2848.9,2847.9,0.7637]
[1749658370903,0.7977,2848.9,2848.0,5.778]
[1749658371108,0.7977,2848.9,2848.2,10.0]
[1749658371401,0.7977,2848.9,2848.0,4.67]
[1749658371603,0.7977,2848.9,2848.1,3.88]
[1749658371818,0.7977,2848.9,2848.2,10.0]
[1749658372027,0.7977,2848.9,2848.0,5.05434035]
[1749658372028,0.7977,2848.9,2848.4,10.0]
[1749658373226,0.7977,2848.9,2848.5,3.88]
[1749658373427,0.7977,2848.9,2848.0,0.54337]
[1749658373605,0.7977,2848.9,2847.4,0.7542]
[1749658373800,0.7977,2848.9,2847.5,4.988]
[1749658374230,0.7977,2848.9,2847.6,10.0]
[1749658374428,0.7977,2848.9,2847.5,4.988]
[1749658374826,0.7977,2848.9,2847.6,10.0]
[1749658375434,0.7977,2848.9,2847.4,0.7542]
[1749658375730,0.7977,2848.9,2847.7,1.108]
[1749658375930,0.7977,2848.9,2847.8,3.88]
[1749658376127,0.7977,2848.9,2848.0,10.0]
[1749658376339,0.7977,2848.9,2847.9,8.59373261]
[1749658376340,0.7977,2848.9,2848.2,10.0]
[1749658376538,0.04,2848.9,2848.4,10.0]
[1749658376738,0.04,2848.9,2848.6,0.7801]
[1749658376941,0.04,2848.9,2848.6,1.8881]
[1749658377307,0.04,2848.9,2848.2,2.1686]
[1749658377643,0.04,2848.9,2848.4,10.0]
[1749658377644,0.1752,2848.6,2848.4,10.0]
[1749658378412,0.1752,2848.6,2848.2,0.7806]
[1749658378617,0.1752,2848.6,2848.5,10.0]
[1749658379527,0.04,2848.9,2848.5,10.0]
[1749658379703,0.04,2848.9,2848.7,10.0]
[1749658381020,0.04,2848.9,2848.8,13.88]
[1749658384368,0.04,2848.9,2848.6,4.51097035]
[1749658384369,0.1752,2848.8,2848.6,4.51097035]
[1749658384527,0.04,2848.9,2848.6,4.51097035]
[1749658384729,0.04,2848.9,2848.1,4.51097035]
[1749658384730,0.7841,2848.8,2848.1,4.51097035]
[1749658384955,0.1752,2848.3,2848.2,13.88]
[1749658385165,0.1752,2848.3,2848.2,18.39097035]
[1749658385328,0.1752,2848.3,2848.2,14.51097035]
[1749658385527,0.1752,2848.3,2848.2,18.39097035]
[1749658385761,0.1752,2848.3,2848.2,14.51097035]
[1749658385971,0.1752,2848.3,2848.2,18.39097035]
[1749658386129,0.1752,2848.4,2848.2,8.39097035]
[1749658386630,0.1752,2848.4,2848.3,10.0]
[1749658387039,0.1752,2848.4,2848.3,20.31275545]
[1749658387250,0.04,2848.9,2848.3,10.7523]
[1749658387484,0.04,2848.9,2848.0,10.31275545]
[1749658387485,0.04,2848.9,2848.5,10.0]
[1749658387642,0.7758,2848.8,2848.5,13.88]
[1749658388038,0.7758,2848.8,2848.5,10.0]
[1749658389670,0.1752,2848.5,2848.4,4.51097035]
[1749658389872,0.1752,2848.5,2848.3,3.88]
[1749658390027,0.7758,2848.8,2848.2,10.0]
[1749658390391,0.04,2848.9,2847.8,8.39097035]
[1749658390392,0.7571,2848.1,2847.8,8.39097035]
[1749658390535,0.7571,2848.4,2847.9,10.83909704]
[1749658390730,0.7571,2848.4,2847.9,10.0]
[1749658390931,0.7571,2848.4,2848.0,3.88]
[1749658392669,0.8107,2848.9,2848.3,10.31275545]
[1749658392875,0.8107,2848.9,2848.4,3.88]
[1749658393188,0.1752,2848.5,2848.4,13.88]
[1749658393551,0.04,2848.9,2848.5,10.0]
[1749658393734,0.04,2848.9,2848.4,14.6708]
[1749658393735,0.1752,2848.7,2848.6,24.19275545]
[1749658395088,0.04,2848.9,2848.6,24.19275545]